lending/lending_fUSD_20250131
["ID","MTS","AMOUNT","RATE_DAILY","PERIOD"]
[351139376,1738348300032,-155.696485,0.00020678,3]
[351139377,1738348300041,-207.0,0.0002068,2]
[351139378,1738348300050,-212.0,0.0002068,2]
[351139379,1738348300060,-210.0,0.0002068,2]
[351139380,1738348300070,-205.0,0.0002068,2]
[351139381,1738348300079,-209.0,0.0002068,2]
[351139382,1738348300088,-209.0,0.0002068,2]
[351139383,1738348300099,-210.0,0.0002068,2]
[351139384,1738348300108,-209.0,0.0002068,2]
[351139385,1738348300119,-150.0,0.00020682,4]
[351139386,1738348300128,-151.0,0.00020682,2]
[351139387,1738348300138,-151.0,0.00020682,2]
[351139388,1738348300149,-151.0,0.00020682,2]
[351139389,1738348300160,-151.0,0.00020682,2]
[351139390,1738348300169,-604.89,0.00020684,14]
[351139391,1738348300178,-187.65641185,0.00020684,4]
[351139392,1738348300188,-153.35657453,0.00020684,4]
[351139393,1738348300199,-151.24040523,0.00020684,4]
[351139394,1738348300208,-6975.42934312,0.000207,2]
[351139395,1738348300218,-150.0,0.000207,8]
[351139396,1738348300227,-500.0,0.00020745,2]
[351139397,1738348300237,-329.26,0.00020758,2]
[351139398,1738348300246,-983.86,0.00020767,2]
[351139399,1738348300256,-983.86,0.00020767,2]
[351139400,1738348300267,-983.86,0.00020767,2]
[351139401,1738348300276,-983.86,0.00020767,2]
[351139402,1738348300286,-983.86,0.00020767,2]
[351139403,1738348300294,-983.86,0.00020767,2]
[351139404,1738348300305,-2506.6,0.00020777,2]
[351139405,1738348300313,-152.0,0.00020805,8]
[351139406,1738348300323,-500.0,0.00020817,7]
[351139407,1738348300332,-500.0,0.00020817,7]
[351139408,1738348300341,-604.89,0.00020821,14]
[351139409,1738348300350,-5000.0,0.0002083,2]
[351139410,1738348300360,-500.0,0.00020845,2]
[351139411,1738348300368,-2668.7355722,0.00020852,2]
[351139412,1738348300377,-2668.73557217,0.00020852,2]
[351139413,1738348300387,-2668.73557217,0.00020852,2]
[351139414,1738348300396,-2098.0,0.00020855,2]
[351139415,1738348300405,-150.0,0.00020861,4]
[351139416,1738348300414,-10716.90126179,0.000209,2]
[351139417,1738348300425,-606.3154498,0.00020945,2]
[351139418,1738348300434,-1901.28483498,0.0002095,2]
[351139419,1738348300444,-14879.12,0.00020951,2]
[351139420,1738348300455,-16505.76,0.00020951,2]
[351139421,1738348300464,-604.89,0.00020958,14]
[351139422,1738348300474,-5800.0,0.0002097,2]
[351139423,1738348300483,-84320.17461026,0.00020999,5]
[351139424,1738348300493,-151.0,0.00020999,2]
[351139425,1738348300502,-151.0,0.00020999,2]
[351139426,1738348300513,-536.277525,0.00020999,2]
[351139427,1738348300524,-536.277525,0.00020999,2]
[351139428,1738348300534,-151.0,0.00020999,2]
[351139429,1738348300543,-151.0,0.00020999,2]
[351139430,1738348300552,-2000.0,0.00021,2]
[351139431,1738348300561,-2000.0,0.00021,2]
[351139432,1738348300570,-2000.0,0.00021,2]
[351139433,1738348300579,-2000.0,0.00021,2]
[351139434,1738348300589,-900.0,0.00021,22]
[351139435,1738348300598,-2000.0,0.00021,2]
[351139436,1738348300607,-2000.0,0.00021,2]
[351139437,1738348300616,-2000.0,0.00021,2]
[351139438,1738348300626,-2000.0,0.00021,2]
[351139439,1738348300635,-2000.0,0.00021,2]
[351139440,1738348300644,-50000.0,0.00021,5]
[351139441,1738348300653,-930.79099789,0.00021,30]
[351139442,1738348300662,-20163.34091036,0.00021,2]
[351139443,1738348300671,-1144.80148118,0.00021,2]
[351139444,1738348300681,-188.89879072,0.00021,2]
[351139445,1738348300691,-91531.28029561,0.00021,3]
[351139446,1738348300703,-222372.07950496,0.00021,3]
[351139447,1738348300711,-2110.0,0.00021,2]
[351139448,1738348300720,-8000.0,0.00021,6]
[351139449,1738348300729,-2000.0,0.00021,2]
[351139450,1738348300738,-32425.7054836,0.00021,2]
[351139451,1738348300746,-5829.98,0.00021,2]
[351139452,1738348300756,-5000.0,0.00021,2]
[351139453,1738348300765,-151.0,0.00021,2]
[351139454,1738348300774,-151.0,0.00021,2]
[351139455,1738348300783,-151.0,0.00021,2]
[351139456,1738348300792,-151.0,0.00021,2]
[351139457,1738348300800,-151.0,0.00021,2]
[351139458,1738348300809,-151.0,0.00021,2]
[351139459,1738348300819,-267.567983,0.00021,2]
[351139460,1738348300827,-267.567983,0.00021,2]
[351139461,1738348300836,-151.0,0.00021,2]
[351139462,1738348300845,-151.0,0.00021,2]
[351139463,1738348300854,-151.0,0.00021,2]
[351139464,1738348300863,-151.0,0.00021,2]
[351139465,1738348300872,-3042.32968616,0.0002102,2]
[351139466,1738348300882,-591.6,0.0002104,2]
[351139467,1738348300890,-150.0,0.00021041,4]
[351139468,1738348300899,-2098.0,0.0002107,2]
[351139469,1738348300908,-500.0,0.00021091,7]
[351139470,1738348300917,-500.0,0.00021091,7]
[351139471,1738348300927,-604.89,0.00021095,14]
[351139472,1738348300936,-305700.76260168,0.000211,2]
[351139473,1738348300945,-3375.0,0.000211,10]
[351139474,1738348300958,-151.0,0.000211,2]
[351139475,1738348300967,-151.0,0.000211,2]
[351139476,1738348300977,-151.0,0.000211,2]
[351139477,1738348300987,-184.9,0.000211,2]
[351139478,1738348300996,-184.9,0.000211,2]
[351139479,1738348301005,-151.0,0.000211,2]
[351139480,1738348301014,-280.263554,0.000211,2]
[351139481,1738348301024,-151.0,0.000211,2]
[351139482,1738348301033,-151.0,0.000211,2]
[351139483,1738348301042,-151.0,0.000211,2]
[351139484,1738348301051,-151.329194,0.000211,2]
[351139485,1738348301060,-151.0,0.000211,2]
[351139486,1738348301069,-151.0,0.000211,2]
[351139487,1738348301078,-151.0,0.000211,2]
[351139488,1738348301087,-267.48856,0.000211,2]
[351139489,1738348301096,-190.85264,0.000211,2]
[351139490,1738348301105,-151.0,0.000211,2]
[351139491,1738348301114,-151.0,0.000211,2]
[351139492,1738348301123,-151.0,0.000211,2]
[351139493,1738348301132,-151.0,0.000211,2]
[351139494,1738348301143,-648.83624328,0.0002111,2]
[351139495,1738348301152,-500.0,0.0002111,2]
[351139496,1738348301161,-500.0,0.0002111,2]
[351139497,1738348301170,-500.0,0.0002111,2]
[351139498,1738348301179,-500.0,0.0002111,2]
[351139499,1738348301188,-2600.0,0.0002111,2]
[351139500,1738348301198,-1400.0,0.0002111,2]
[351139501,1738348301208,-500.0,0.0002111,2]
[351139502,1738348301218,-2600.0,0.0002111,2]
[351139503,1738348301227,-1400.0,0.0002111,2]
[351139504,1738348301236,-2600.0,0.0002111,2]
[351139505,1738348301245,-500.0,0.0002111,2]
[351139506,1738348301254,-2600.0,0.0002111,2]
[351139507,1738348301263,-500.0,0.0002111,2]
[351139508,1738348301272,-1400.0,0.0002111,2]
[351139509,1738348301281,-2600.0,0.0002111,2]
[351139510,1738348301291,-500.0,0.0002111,2]
[351139511,1738348301299,-1400.0,0.0002111,2]
[351139512,1738348301308,-500.0,0.0002111,2]
[351139513,1738348301317,-986.09706369,0.0002111,2]
[351139514,1738348301327,-1400.0,0.0002111,2]
[351139515,1738348301335,-1400.0,0.0002111,2]
[351139516,1738348301345,-584.76958222,0.0002111,2]
[351139517,1738348301354,-1400.0,0.0002111,2]
[351139518,1738348301363,-1400.0,0.0002111,2]
[351139519,1738348301372,-500.0,0.0002111,2]
[351139520,1738348301381,-2600.0,0.0002111,2]
[351139521,1738348301390,-1400.0,0.0002111,2]
[351139522,1738348301399,-500.0,0.0002111,2]
[351139523,1738348301408,-2600.0,0.0002111,2]
[351139524,1738348301418,-1400.0,0.0002111,2]
[351139525,1738348301426,-500.0,0.0002111,2]
[351139526,1738348301435,-2600.0,0.0002111,2]
[351139527,1738348301444,-1400.0,0.0002111,2]
[351139528,1738348301455,-500.0,0.0002111,2]
[351139529,1738348301464,-2600.0,0.0002111,2]
[351139530,1738348301474,-500.0,0.0002111,2]
[351139531,1738348301483,-2600.0,0.0002111,2]
[351139532,1738348301492,-760.06415164,0.0002111,2]
[351139533,1738348301501,-1400.0,0.0002111,2]
[351139534,1738348301514,-500.0,0.0002111,2]
[351139535,1738348301523,-1400.0,0.0002111,2]
[351139536,1738348301532,-2600.0,0.0002111,2]
[351139537,1738348301541,-500.0,0.0002111,2]
[351139538,1738348301551,-1520.44667865,0.0002111,2]
[351139539,1738348301560,-2600.0,0.0002111,2]
[351139540,1738348301569,-527.24580704,0.0002111,2]
[351139541,1738348301578,-2600.0,0.0002111,2]
[351139542,1738348301589,-500.0,0.0002111,2]
[351139543,1738348301598,-4314.07192259,0.0002111,2]
[351139544,1738348301607,-500.0,0.0002111,2]
[351139545,1738348301616,-728.6478427,0.0002111,2]
[351139546,1738348301625,-600.0,0.0002111,2]
[351139547,1738348301634,-500.0,0.0002111,2]
[351139548,1738348301643,-500.0,0.0002111,2]
[351139549,1738348301652,-600.0,0.0002111,2]
[351139550,1738348301662,-600.0,0.0002111,2]
[351139551,1738348301671,-500.0,0.0002111,2]
[351139552,1738348301680,-600.0,0.0002111,2]
[351139553,1738348301690,-500.0,0.0002111,2]
[351139554,1738348301701,-600.0,0.0002111,2]
[351139555,1738348301712,-955.02855051,0.0002111,2]
[351139556,1738348301722,-500.0,0.0002111,2]
[351139557,1738348301731,-542.22536508,0.0002111,2]
[351139558,1738348301741,-500.0,0.0002111,2]
[351139559,1738348301750,-981.68516292,0.0002111,2]
[351139560,1738348301759,-1100.0,0.0002111,2]
[351139561,1738348301769,-1100.0,0.0002111,2]
[351139562,1738348301779,-1100.0,0.0002111,2]
[351139563,1738348301789,-1100.0,0.0002111,2]
[351139564,1738348301798,-1100.0,0.0002111,2]
[351139565,1738348301807,-1100.0,0.0002111,2]
[351139566,1738348301817,-1100.0,0.0002111,2]
[351139567,1738348301826,-700.0,0.0002111,2]
[351139568,1738348301836,-1100.0,0.0002111,2]
[351139569,1738348301845,-700.0,0.0002111,2]
[351139570,1738348301854,-1100.0,0.0002111,2]
[351139571,1738348301864,-700.0,0.0002111,2]
[351139572,1738348301873,-1100.0,0.0002111,2]
[351139573,1738348301882,-700.0,0.0002111,2]
[351139574,1738348301892,-1100.0,0.0002111,2]
[351139575,1738348301902,-700.0,0.0002111,2]
[351139576,1738348301911,-1100.0,0.0002111,2]
[351139577,1738348301921,-700.0,0.0002111,2]
[351139578,1738348301932,-1400.53361048,0.0002111,2]
[351139579,1738348301941,-700.0,0.0002111,2]
[351139580,1738348301953,-700.0,0.0002111,2]
[351139581,1738348301963,-700.0,0.0002111,2]
[351139582,1738348301972,-700.0,0.0002111,2]
[351139583,1738348301981,-700.0,0.0002111,2]
[351139584,1738348301990,-700.0,0.0002111,2]
[351139585,1738348302000,-700.0,0.0002111,2]
[351139586,1738348302009,-1087.72441269,0.0002111,2]
[351139587,1738348302019,-205.178142,0.0002111,2]
[351139588,1738348302028,-151.0,0.0002111,2]
[351139589,1738348302037,-294.583862,0.0002111,2]
[351139590,1738348302046,-151.0,0.0002111,2]
[351139591,1738348302055,-151.0,0.0002111,2]
[351139592,1738348302064,-151.0,0.0002111,2]
[351139593,1738348302074,-151.220355,0.0002111,2]
[351139594,1738348302083,-151.0,0.0002111,2]
[351139595,1738348302093,-151.0,0.0002111,2]
[351139596,1738348302102,-172.05062332,0.0002112,2]
[351139597,1738348302112,-47658.62135681,0.0002115,2]
[351139598,1738348302122,-165.748167,0.000212,9]
[351139599,1738348302131,-118223.21853982,0.0002122,2]
[351139600,1738348302141,-365751.52524546,0.0002122,2]
[351139601,1738348302150,-150.0,0.0002122,4]
[351139602,1738348302161,-604.89,0.00021232,14]
[351139603,1738348302170,-461.66506064,0.00021232,2]
[351139604,1738348302180,-2098.0,0.00021285,2]
[351139605,1738348302189,-226.99042041,0.000213,2]
[351139606,1738348302199,-152.0,0.00021337,9]
[351139607,1738348302216,-500.0,0.00021349,4]
[351139608,1738348302225,-285716.15081983,0.0002135,3]
[351139609,1738348302235,-151.0,0.0002135,2]
[351139610,1738348302244,-151.0,0.0002135,2]
[351139611,1738348302254,-151.0,0.0002135,2]
[351139612,1738348302263,-162.507566,0.0002135,2]
[351139613,1738348302273,-151.0,0.0002135,2]
[351139614,1738348302282,-672.567098,0.0002135,2]
[351139615,1738348302291,-672.567098,0.0002135,2]
[351139616,1738348302301,-151.0,0.0002135,2]
[351139617,1738348302311,-151.0,0.0002135,2]
[351139618,1738348302320,-809.512431,0.0002135,2]
[351139619,1738348302329,-809.512431,0.0002135,2]
[351139620,1738348302339,-151.0,0.0002135,2]
[351139621,1738348302349,-151.0,0.0002135,2]
[351139622,1738348302359,-151.0,0.0002135,2]
[351139623,1738348302368,-246.225,0.0002135,2]
[351139624,1738348302377,-246.225,0.0002135,2]
[351139625,1738348302387,-151.0,0.0002135,2]
[351139626,1738348302397,-1117.297616,0.0002135,2]
[351139627,1738348302406,-1117.297616,0.0002135,2]
[351139628,1738348302415,-199.479433,0.0002135,2]
[351139629,1738348302424,-162.730615,0.0002135,2]
[351139630,1738348302433,-162.730615,0.0002135,2]
[351139631,1738348302442,-151.0,0.0002135,2]
[351139632,1738348302457,-2928.34602958,0.0002136,5]
[351139633,1738348302467,-500.0,0.00021365,7]
[351139634,1738348302477,-500.0,0.00021365,7]
[351139635,1738348302486,-500.0,0.00021369,4]
[351139636,1738348302495,-500.0,0.00021369,4]
[351139637,1738348302505,-503.82851661,0.00021369,4]
[351139638,1738348302517,-500.0,0.00021369,4]
[351139639,1738348302526,-194.264165,0.00021369,4]
[351139640,1738348302536,-604.89,0.00021369,14]
[351139641,1738348302547,-6041.4,0.0002137,2]
[351139642,1738348302557,-300.0,0.0002137,2]
[351139643,1738348302567,-298.34,0.0002137,2]
[351139644,1738348302577,-410.96,0.0002137,2]
[351139645,1738348302586,-298.34,0.0002137,2]
[351139646,1738348302599,-438.33,0.0002137,2]
[351139647,1738348302610,-438.33,0.0002137,2]
[351139648,1738348302620,-438.33,0.0002137,2]
[351139649,1738348302630,-318.67,0.0002137,2]
[351139650,1738348302639,-20234.29739115,0.0002138,3]
[351139651,1738348302649,-150.54,0.00021391,2]
[351139652,1738348302659,-191.29025261,0.000214,4]
[351139653,1738348302669,-847.72,0.000214,31]
[351139654,1738348302679,-847.72,0.000214,31]
[351139655,1738348302689,-847.72,0.000214,31]
[351139656,1738348302699,-847.72,0.000214,31]
[351139657,1738348302713,-847.72,0.000214,31]
[351139658,1738348302723,-847.72,0.000214,31]
[351139659,1738348302733,-847.72,0.000214,31]
[351139660,1738348302743,-847.72,0.000214,31]
[351139661,1738348302753,-847.72,0.000214,31]
[351139662,1738348302762,-847.72,0.000214,31]
[351139663,1738348302772,-847.72,0.000214,31]
[351139664,1738348302782,-847.72,0.000214,31]
[351139665,1738348302793,-847.72,0.000214,31]
[351139666,1738348302802,-847.72,0.000214,31]
[351139667,1738348302812,-847.72,0.000214,31]
[351139668,1738348302821,-847.72,0.000214,31]
[351139669,1738348302831,-4828.93,0.000214,2]
[351139670,1738348302841,-39591.39310142,0.00021436,2]
[351139671,1738348302851,-236.704512,0.00021436,2]
[351139672,1738348302862,-151.0,0.00021436,2]
[351139673,1738348302871,-536.277525,0.00021436,2]
[351139674,1738348302881,-536.277525,0.00021436,2]
[351139675,1738348302892,-151.0,0.00021436,2]
[351139676,1738348302902,-151.0,0.00021436,2]
[351139677,1738348302911,-151.0,0.00021436,2]
[351139678,1738348302922,-151.0,0.00021436,2]
[351139679,1738348302931,-153.643954,0.00021436,2]
[351139680,1738348302940,-8645.26006422,0.00021459,2]
[351139681,1738348302950,-774.29,0.00021479,2]
[351139682,1738348302965,-774.29,0.00021479,2]
[351139683,1738348302975,-878.1,0.00021479,2]
[351139684,1738348302984,-774.29,0.00021479,2]
[351139685,1738348302994,-774.29,0.00021479,2]
[351139686,1738348303003,-210.54,0.00021479,2]
[351139687,1738348303013,-23853.588169,0.0002148,2]
[351139688,1738348303022,-23853.588169,0.0002148,2]
[351139689,1738348303031,-23853.588169,0.0002148,2]
[351139690,1738348303042,-23853.588169,0.0002148,2]
[351139691,1738348303051,-23853.588169,0.0002148,2]
[351139692,1738348303060,-23853.588169,0.0002148,2]
[351139693,1738348303070,-23853.588169,0.0002148,2]
[351139694,1738348303079,-23853.588169,0.0002148,2]
[351139695,1738348303088,-23853.588169,0.0002148,2]
[351139696,1738348303098,-23853.588169,0.0002148,2]
[351139697,1738348303107,-23853.588169,0.0002148,2]
[351139698,1738348303117,-23853.588169,0.0002148,2]
[351139699,1738348303126,-23853.588169,0.0002148,2]
[351139700,1738348303135,-23853.588169,0.0002148,2]
[351139701,1738348303145,-23853.588169,0.0002148,2]
[351139702,1738348303155,-23853.588169,0.0002148,2]
[351139703,1738348303165,-23853.588169,0.0002148,2]
[351139704,1738348303175,-23853.588169,0.0002148,2]
[351139705,1738348303184,-23853.588169,0.0002148,2]
[351139706,1738348303194,-23853.588169,0.0002148,2]
[351139707,1738348303206,-151.0,0.0002148,2]
[351139708,1738348303215,-151.0,0.0002148,2]
[351139709,1738348303225,-151.0,0.0002148,2]
[351139710,1738348303235,-151.0,0.0002148,2]
[351139711,1738348303244,-280.31888,0.0002148,2]
[351139712,1738348303254,-151.0,0.0002148,2]
[351139713,1738348303264,-267.567983,0.0002148,2]
[351139714,1738348303274,-267.567983,0.0002148,2]
[351139715,1738348303284,-1951.35141518,0.0002149,2]
[351139716,1738348303294,-2568.15761915,0.000215,2]
[351139717,1738348303305,-261684.80819378,0.000215,3]
[351139718,1738348303316,-831700.95579197,0.000215,3]
[351139719,1738348303327,-2110.0,0.000215,2]
[351139720,1738348303336,-2098.0,0.000215,2]
[351139721,1738348303346,-780.21999436,0.000215,2]
[351139722,1738348303356,-151.0,0.000215,2]
[351139723,1738348303365,-293.569005,0.000215,2]
[351139724,1738348303375,-151.0,0.000215,2]
[351139725,1738348303385,-151.0,0.000215,2]
[351139726,1738348303395,-151.0,0.000215,2]
[351139727,1738348303405,-151.0,0.000215,2]
[351139728,1738348303414,-151.0,0.000215,2]
[351139729,1738348303424,-167.111896,0.000215,2]
[351139730,1738348303434,-184.9,0.000215,2]
[351139731,1738348303443,-184.9,0.000215,2]
[351139732,1738348303457,-151.0,0.000215,2]
[351139733,1738348303466,-151.0,0.000215,2]
[351139734,1738348303476,-151.0,0.000215,2]
[351139735,1738348303486,-151.0,0.000215,2]
[351139736,1738348303495,-151.0,0.000215,2]
[351139737,1738348303509,-151.0,0.000215,2]
[351139738,1738348303519,-151.0,0.000215,2]
[351139739,1738348303528,-151.0,0.000215,2]
[351139740,1738348303538,-195.568469,0.000215,2]
[351139741,1738348303549,-151.0,0.000215,2]
[351139742,1738348303559,-604.89,0.00021506,14]
[351139743,1738348303569,-4502.27428092,0.0002152,2]
[351139744,1738348303579,-387.1855889,0.00021568,2]
[351139745,1738348303591,-6939.0584782,0.00021568,2]
[351139746,1738348303602,-150.0,0.00021582,5]
[351139747,1738348303612,-114212.12807464,0.00021583,7]
[351139748,1738348303622,-151.0,0.00021583,2]
[351139749,1738348303632,-151.0,0.00021583,2]
[351139750,1738348303642,-151.0,0.00021583,2]
[351139751,1738348303653,-220.484769,0.00021583,2]
[351139752,1738348303663,-672.567098,0.00021583,2]
[351139753,1738348303673,-672.567098,0.00021583,2]
[351139754,1738348303683,-187.558952,0.00021583,2]
[351139755,1738348303693,-157.244564,0.00021583,2]
[351139756,1738348303703,-809.512431,0.00021583,2]
[351139757,1738348303715,-809.512431,0.00021583,2]
[351139758,1738348303725,-151.0,0.00021583,2]
[351139759,1738348303735,-151.0,0.00021583,2]
[351139760,1738348303745,-202.618514,0.00021583,2]
[351139761,1738348303755,-246.225,0.00021583,2]
[351139762,1738348303765,-246.225,0.00021583,2]
[351139763,1738348303775,-151.0,0.00021583,2]
[351139764,1738348303785,-1117.297616,0.00021583,2]
[351139765,1738348303796,-1117.297616,0.00021583,2]
[351139766,1738348303807,-162.730615,0.00021583,2]
[351139767,1738348303991,-162.730615,0.00021583,2]
[351139768,1738348304007,-264.677612,0.00021583,2]
[351139769,1738348304017,-151.0,0.00021589,2]
[351139770,1738348304027,-536.277525,0.00021589,2]
[351139771,1738348304037,-536.277525,0.00021589,2]
[351139772,1738348304047,-151.0,0.00021589,2]
[351139773,1738348304056,-151.0,0.00021589,2]
[351139774,1738348304066,-983.86,0.00021589,2]
[351139775,1738348304075,-983.86,0.00021589,2]
[351139776,1738348304085,-983.86,0.00021589,2]
[351139777,1738348304095,-850.59,0.00021589,2]
[351139778,1738348304104,-2000.0,0.0002159,7]
[351139779,1738348304114,-370.52311516,0.00021595,30]
[351139780,1738348304124,-151.0,0.00021596,2]
[351139781,1738348304134,-151.0,0.00021596,2]
[351139782,1738348304143,-1543251.92882207,0.000216,30]
[351139783,1738348304154,-151.0,0.000216,2]
[351139784,1738348304164,-184.9,0.000216,2]
[351139785,1738348304174,-184.9,0.000216,2]
[351139786,1738348304183,-151.0,0.000216,2]
[351139787,1738348304193,-151.0,0.000216,2]
[351139788,1738348304204,-151.0,0.000216,2]
[351139789,1738348304215,-151.0,0.000216,2]
[351139790,1738348304226,-282.234926,0.000216,2]
[351139791,1738348304235,-151.0,0.000216,2]
[351139792,1738348304244,-151.0,0.000216,2]
[351139793,1738348304254,-151.0,0.000216,2]
[351139794,1738348304264,-151.0,0.000216,2]
[351139795,1738348304273,-151.0,0.000216,2]
[351139796,1738348304283,-151.0,0.000216,2]
[351139797,1738348304293,-288.362648,0.000216,2]
[351139798,1738348304303,-151.0,0.000216,2]
[351139799,1738348304313,-267.567983,0.000216,2]
[351139800,1738348304322,-267.567983,0.000216,2]
[351139801,1738348304332,-500.0,0.00021639,7]
[351139802,1738348304341,-500.0,0.00021639,7]
[351139803,1738348304352,-604.89,0.00021643,14]
[351139804,1738348304362,-7248.07499112,0.000217,2]
[351139805,1738348304372,-2098.0,0.00021715,2]
[351139806,1738348304382,-604.89,0.0002178,14]
[351139807,1738348304391,-841.13731257,0.00021781,120]
[351139808,1738348304400,-5434.0,0.000218,2]
[351139809,1738348304411,-20168.95339385,0.000218,2]
[351139810,1738348304422,-151.0,0.000218,2]
[351139811,1738348304431,-151.0,0.000218,2]
[351139812,1738348304440,-151.0,0.000218,2]
[351139813,1738348304450,-151.0,0.000218,2]
[351139814,1738348304462,-5000.0,0.000218,2]
[351139815,1738348304471,-387.1855889,0.00021837,2]
[351139816,1738348304481,-387.1855889,0.00021837,2]
[351139817,1738348304491,-387.1855889,0.00021837,2]
[351139818,1738348304500,-387.1855889,0.00021837,2]
[351139819,1738348304509,-5343.3877622,0.00021837,2]
[351139820,1738348304523,-3747.7170462,0.00021837,2]
[351139821,1738348304532,-2152.0463302,0.00021837,2]
[351139822,1738348304543,-556.3756142,0.00021837,2]
[351139823,1738348304555,-151.0,0.00021852,2]
[351139824,1738348304564,-151.0,0.00021852,2]
[351139825,1738348304574,-151.0,0.00021852,2]
[351139826,1738348304584,-151.0,0.00021852,2]
[351139827,1738348304593,-200.94676,0.00021852,2]
[351139828,1738348304604,-536.277525,0.00021852,2]
[351139829,1738348304613,-536.277525,0.00021852,2]
[351139830,1738348304627,-536.277525,0.00021852,2]
[351139831,1738348304637,-536.277525,0.00021852,2]
[351139832,1738348304646,-536.277525,0.00021852,2]
[351139833,1738348304656,-536.277525,0.00021852,2]
[351139834,1738348304665,-536.277525,0.00021852,2]
[351139835,1738348304675,-536.277525,0.00021852,2]
[351139836,1738348304684,-536.277525,0.00021852,2]
[351139837,1738348304694,-536.277525,0.00021852,2]
[351139838,1738348304706,-536.277525,0.00021852,2]
[351139839,1738348304716,-536.277523,0.00021852,2]
[351139840,1738348304727,-151.0,0.00021852,2]
[351139841,1738348304736,-151.0,0.00021852,2]
[351139842,1738348304746,-151.0,0.00021852,2]
[351139843,1738348304756,-151.0,0.00021852,2]
[351139844,1738348304765,-151.0,0.00021852,2]
[351139845,1738348304775,-151.0,0.00021852,2]
[351139846,1738348304785,-220.853448,0.00021852,2]
[351139847,1738348304795,-151.0,0.00021852,2]
[351139848,1738348304804,-151.0,0.00021852,2]
[351139849,1738348304814,-151.0,0.00021852,2]
[351139850,1738348304824,-151.0,0.00021852,2]
[351139851,1738348304833,-297.042562,0.00021852,2]
[351139852,1738348304843,-151.0,0.00021852,2]
[351139853,1738348304852,-151.0,0.00021852,2]
[351139854,1738348304862,-151.0,0.00021852,2]
[351139855,1738348304872,-260.228086,0.00021852,2]
[351139856,1738348304881,-151.0,0.00021852,2]
[351139857,1738348304891,-151.0,0.00021852,2]
[351139858,1738348304900,-151.0,0.00021852,2]
[351139859,1738348304909,-151.0,0.00021852,2]
[351139860,1738348304918,-151.0,0.00021852,2]
[351139861,1738348304928,-672.567098,0.00021852,2]
[351139862,1738348304938,-672.567098,0.00021852,2]
[351139863,1738348304947,-672.567098,0.00021852,2]
[351139864,1738348304960,-672.567098,0.00021852,2]
[351139865,1738348304970,-672.567098,0.00021852,2]
[351139866,1738348304979,-672.56709,0.00021852,2]
[351139867,1738348304988,-809.512431,0.00021852,2]
[351139868,1738348304998,-809.512431,0.00021852,2]
[351139869,1738348305007,-809.512431,0.00021852,2]
[351139870,1738348305017,-809.512431,0.00021852,2]
[351139871,1738348305026,-809.512431,0.00021852,2]
[351139872,1738348305036,-809.512431,0.00021852,2]
[351139873,1738348305044,-809.512431,0.00021852,2]
[351139874,1738348305054,-809.512431,0.00021852,2]
[351139875,1738348305063,-151.0,0.00021852,2]